fUSD/lending_fUSD_20250510
["ID","MTS","AMOUNT","RATE_DAILY","PERIOD"]
[360664929,1746921042879,-700.0,0.000196,7]
[360664930,1746921042888,-151.0,0.00019601,2]
[360664931,1746921042897,-300.0,0.00019621,2]
[360664932,1746921042907,-417.451,0.00019621,2]
[360664933,1746921042916,-1455.0,0.00019621,2]
[360664934,1746921042926,-6813.0,0.00019621,2]
[360664935,1746921042940,-4024.0,0.00019621,2]
[360664936,1746921042950,-189.756,0.00019621,2]
[360664937,1746921042959,-153.0,0.00019621,2]
[360664938,1746921042969,-5937.0,0.00019621,2]
[360664939,1746921042980,-167.98493623,0.00019632,2]
[360664940,1746921042990,-481.1528,0.00019637,2]
[360664941,1746921042999,-2461.43501999,0.00019637,2]
[360664942,1746921043010,-164.90625139,0.00019637,2]
[360664943,1746921043020,-313.56417184,0.00019637,2]
[360664944,1746921043029,-282.60158863,0.00019637,2]
[360664945,1746921043039,-400.0,0.00019637,2]
[360664946,1746921043048,-400.0,0.00019637,2]
[360664947,1746921043057,-400.0,0.00019637,2]
[360664948,1746921043067,-400.0,0.00019637,2]
[360664949,1746921043076,-400.0,0.00019637,2]
[360664950,1746921043086,-400.0,0.00019637,2]
[360664951,1746921043096,-400.0,0.00019637,2]
[360664952,1746921043106,-400.0,0.00019637,2]
[360664953,1746921043115,-400.0,0.00019637,2]
[360664954,1746921043125,-400.0,0.00019637,2]
[360664955,1746921043134,-400.0,0.00019637,2]
[360664956,1746921043144,-400.0,0.00019637,2]
[360664957,1746921043153,-400.0,0.00019637,2]
[360664958,1746921043163,-400.0,0.00019637,2]
[360664959,1746921043172,-400.0,0.00019637,2]
[360664960,1746921043182,-400.0,0.00019637,2]
[360664961,1746921043190,-400.0,0.00019637,2]
[360664962,1746921043200,-400.0,0.00019637,2]
[360664963,1746921043210,-400.0,0.00019637,2]
[360664964,1746921043219,-400.0,0.00019637,2]
[360664965,1746921043230,-400.0,0.00019637,2]
[360664966,1746921043239,-474.33,0.00019637,2]
[360664967,1746921043250,-400.0,0.00019637,2]
[360664968,1746921043259,-400.0,0.00019637,2]
[360664969,1746921043269,-400.0,0.00019637,2]
[360664970,1746921043279,-400.0,0.00019637,2]
[360664971,1746921043288,-400.0,0.00019637,2]
[360664972,1746921043298,-400.0,0.00019637,2]
[360664973,1746921043309,-400.0,0.00019637,2]
[360664974,1746921043319,-474.115858,0.00019637,2]
[360664975,1746921043328,-655.53,0.00019637,2]
[360664976,1746921043338,-6656.326909,0.00019637,2]
[360664977,1746921043348,-400.0,0.00019637,2]
[360664978,1746921043358,-400.0,0.00019637,2]
[360664979,1746921043367,-78909.40223,0.00019637,2]
[360664980,1746921043377,-400.0,0.00019637,2]
[360664981,1746921043386,-19341.246653,0.00019637,2]
[360664982,1746921043396,-400.0,0.00019637,2]
[360664983,1746921043406,-400.0,0.00019637,2]
[360664984,1746921043416,-400.0,0.00019638,2]
[360664985,1746921043426,-400.0,0.00019638,2]
[360664986,1746921043435,-400.0,0.00019638,2]
[360664987,1746921043445,-400.0,0.00019638,2]
[360664988,1746921043455,-400.0,0.00019638,2]
[360664989,1746921043465,-400.0,0.00019638,2]
[360664990,1746921043476,-400.0,0.00019638,2]
[360664991,1746921043486,-400.0,0.00019638,2]
[360664992,1746921043496,-400.0,0.00019638,2]
[360664993,1746921043507,-400.0,0.00019638,2]
[360664994,1746921043516,-400.0,0.00019638,2]
[360664995,1746921043528,-400.0,0.00019638,2]
[360664996,1746921043539,-400.0,0.00019638,2]
[360664997,1746921043549,-400.0,0.00019638,2]
[360664998,1746921043559,-401.4073858,0.00019638,2]
[360664999,1746921043570,-400.0,0.00019638,2]
[360665000,1746921043579,-403.36417419,0.00019638,2]
[360665001,1746921043588,-400.0,0.00019638,2]
[360665002,1746921043597,-400.0,0.00019638,2]
[360665003,1746921043607,-400.0,0.00019638,2]
[360665004,1746921043616,-400.0,0.00019638,2]
[360665005,1746921043626,-400.0,0.00019638,2]
[360665006,1746921043635,-468.61403268,0.00019638,2]
[360665007,1746921043645,-400.0,0.00019638,2]
[360665008,1746921043655,-539.52012943,0.00019638,2]
[360665009,1746921043664,-400.0,0.00019638,2]
[360665010,1746921043673,-400.0,0.00019638,2]
[360665011,1746921043683,-400.0,0.00019638,2]
[360665012,1746921043692,-400.0,0.00019638,2]
[360665013,1746921043702,-400.0,0.00019638,2]
[360665014,1746921043711,-400.0,0.00019638,2]
[360665015,1746921043721,-400.0,0.00019638,2]
[360665016,1746921043731,-400.0,0.00019638,2]
[360665017,1746921043741,-400.0,0.00019638,2]
[360665018,1746921043752,-450.0,0.00019638,2]
[360665019,1746921043762,-400.0,0.00019638,2]
[360665020,1746921043772,-400.0,0.00019638,2]
[360665021,1746921043781,-400.0,0.00019638,2]
[360665022,1746921043791,-400.0,0.00019638,2]
[360665023,1746921043800,-400.0,0.00019638,2]
[360665024,1746921043810,-400.0,0.00019638,2]
[360665025,1746921043821,-400.0,0.00019638,2]
[360665026,1746921043831,-400.0,0.00019638,2]
[360665027,1746921043840,-400.0,0.00019638,2]
[360665028,1746921043850,-400.0,0.00019638,2]
[360665029,1746921043859,-400.0,0.00019638,2]
[360665030,1746921043868,-400.0,0.00019638,2]
[360665031,1746921043877,-406.58,0.00019638,2]
[360665032,1746921043887,-400.0,0.00019638,2]
[360665033,1746921043896,-400.0,0.00019638,2]
[360665034,1746921043905,-400.0,0.00019638,2]
[360665035,1746921043915,-400.0,0.00019638,2]
[360665036,1746921043924,-400.0,0.00019638,2]
[360665037,1746921043935,-472.56107101,0.00019638,2]
[360665038,1746921043946,-400.0,0.00019638,2]
[360665039,1746921043956,-400.0,0.00019638,2]
[360665040,1746921043965,-400.0,0.00019638,2]
[360665041,1746921043975,-400.0,0.00019638,2]
[360665042,1746921043986,-400.0,0.00019638,2]
[360665043,1746921043997,-400.0,0.00019638,2]
[360665044,1746921044007,-400.0,0.00019638,2]
[360665045,1746921044018,-579.75,0.00019638,2]
[360665046,1746921044027,-400.0,0.00019638,2]
[360665047,1746921044038,-400.0,0.00019638,2]
[360665048,1746921044047,-400.0,0.00019638,2]
[360665049,1746921044056,-400.0,0.00019638,2]
[360665050,1746921044066,-400.0,0.00019638,2]
[360665051,1746921044077,-400.0,0.00019638,2]
[360665052,1746921044087,-404.39801893,0.00019638,2]
[360665053,1746921044097,-400.0,0.00019638,2]
[360665054,1746921044106,-400.0,0.00019638,2]
[360665055,1746921044116,-400.0,0.00019638,2]
[360665056,1746921044125,-400.0,0.00019638,2]
[360665057,1746921044134,-400.0,0.00019638,2]
[360665058,1746921044144,-807.57,0.00019638,2]
[360665059,1746921044310,-400.0,0.00019638,2]
[360665060,1746921044323,-724.04,0.00019638,2]
[360665061,1746921044334,-727.82,0.00019638,2]
[360665062,1746921044343,-400.0,0.00019638,2]
[360665063,1746921044356,-400.0,0.00019638,2]
[360665064,1746921044365,-400.0,0.00019638,2]
[360665065,1746921044375,-400.0,0.00019638,2]
[360665066,1746921044386,-675.74,0.00019638,2]
[360665067,1746921044397,-500.0,0.00019638,2]
[360665068,1746921044408,-400.0,0.00019638,2]
[360665069,1746921044418,-576.34,0.00019638,2]
[360665070,1746921044428,-547.95,0.00019638,2]
[360665071,1746921044437,-500.0,0.00019638,2]
[360665072,1746921044446,-662.5,0.00019638,2]
[360665073,1746921044455,-500.0,0.00019638,2]
[360665074,1746921044464,-500.0,0.00019638,2]
[360665075,1746921044473,-400.0,0.00019638,2]
[360665076,1746921044483,-400.0,0.00019638,2]
[360665077,1746921044492,-400.0,0.00019638,2]
[360665078,1746921044501,-400.0,0.00019638,2]
[360665079,1746921044511,-400.0,0.00019638,2]
[360665080,1746921044520,-652.75,0.00019638,2]
[360665081,1746921044529,-361.18,0.00019638,2]
[360665082,1746921044539,-400.0,0.00019638,2]
[360665083,1746921044548,-1914.15,0.00019638,2]
[360665084,1746921044558,-400.0,0.00019638,2]
[360665085,1746921044567,-400.0,0.00019638,2]
[360665086,1746921044578,-400.0,0.00019638,2]
[360665087,1746921044587,-361.94,0.00019638,2]
[360665088,1746921044597,-400.0,0.00019638,2]
[360665089,1746921044607,-400.0,0.00019638,2]
[360665090,1746921044618,-710.25,0.00019638,2]
[360665091,1746921044628,-400.0,0.00019638,2]
[360665092,1746921044637,-400.0,0.00019638,2]
[360665093,1746921044646,-400.0,0.00019638,2]
[360665094,1746921044656,-400.0,0.00019638,2]
[360665095,1746921044665,-22293.6583,0.00019639,2]
[360665096,1746921044675,-440.969,0.00019639,2]
[360665097,1746921044687,-500.0,0.0001964,2]
[360665098,1746921044698,-9473.67416594,0.00019641,2]
[360665099,1746921044707,-807.1883,0.00019645,2]
[360665100,1746921044718,-632.77239703,0.00019648,2]
[360665101,1746921044728,-167.98493622,0.00019662,2]
[360665102,1746921044737,-2461.43501993,0.00019666,2]
[360665103,1746921044746,-1282.63818801,0.0001968,2]
[360665104,1746921044756,-6413.0,0.0001969,2]
[360665105,1746921044766,-167.98493622,0.00019692,2]
[360665106,1746921044775,-9473.67416594,0.00019692,2]
[360665107,1746921044784,-2461.43501993,0.00019695,2]
[360665108,1746921044794,-700.0,0.000197,7]
[360665109,1746921044803,-3014.0,0.000197,2]
[360665110,1746921044813,-1282.6,0.000197,2]
[360665111,1746921044826,-150.0,0.00019717,2]
[360665112,1746921044838,-1680.0,0.00019717,2]
[360665113,1746921044848,-167.98493622,0.00019721,2]
[360665114,1746921044857,-2461.43501993,0.00019724,2]
[360665115,1746921044867,-156.587,0.00019726,2]
[360665116,1746921044876,-400.0,0.00019732,2]
[360665117,1746921044886,-408.20849241,0.00019732,2]
[360665118,1746921044896,-400.0,0.00019732,2]
[360665119,1746921044905,-400.0,0.00019732,2]
[360665120,1746921044915,-400.0,0.00019732,2]
[360665121,1746921044924,-353.24617457,0.00019732,2]
[360665122,1746921044935,-401.88208842,0.00019732,2]
[360665123,1746921044946,-400.0,0.00019732,2]
[360665124,1746921044956,-400.0,0.00019732,2]
[360665125,1746921044965,-400.0,0.00019732,2]
[360665126,1746921044975,-400.0,0.00019732,2]
[360665127,1746921044984,-420.89,0.00019732,2]
[360665128,1746921044994,-400.0,0.00019732,2]
[360665129,1746921045003,-400.0,0.00019732,2]
[360665130,1746921045015,-400.0,0.00019732,2]
[360665131,1746921045024,-186.04677891,0.00019732,2]
[360665132,1746921045033,-400.0,0.00019732,2]
[360665133,1746921045043,-400.0,0.00019732,2]
[360665134,1746921045053,-400.0,0.00019732,2]
[360665135,1746921045063,-447.66,0.00019732,2]
[360665136,1746921045073,-400.0,0.00019732,2]
[360665137,1746921045083,-400.0,0.00019732,2]
[360665138,1746921045094,-400.0,0.00019732,2]
[360665139,1746921045104,-400.0,0.00019732,2]
[360665140,1746921045113,-400.0,0.00019732,2]
[360665141,1746921045124,-400.0,0.00019732,2]
[360665142,1746921045133,-400.0,0.00019732,2]
[360665143,1746921045143,-400.0,0.00019732,2]
[360665144,1746921045152,-400.0,0.00019732,2]
[360665145,1746921045162,-400.0,0.00019732,2]
[360665146,1746921045171,-400.0,0.00019732,2]
[360665147,1746921045181,-400.0,0.00019732,2]
[360665148,1746921045191,-250.0,0.00019732,2]
[360665149,1746921045202,-400.0,0.00019732,2]
[360665150,1746921045211,-400.0,0.00019732,2]
[360665151,1746921045220,-450.28,0.00019732,2]
[360665152,1746921045230,-387.6,0.00019732,2]
[360665153,1746921045240,-400.0,0.00019732,2]
[360665154,1746921045249,-400.0,0.00019732,2]
[360665155,1746921045259,-400.0,0.00019732,2]
[360665156,1746921045269,-173.67873171,0.00019732,2]
[360665157,1746921045279,-400.0,0.00019732,2]
[360665158,1746921045289,-713.25,0.00019732,2]
[360665159,1746921045298,-405.3983683,0.00019732,2]
[360665160,1746921045308,-400.0,0.00019732,2]
[360665161,1746921045317,-965.83,0.00019732,2]
[360665162,1746921045329,-400.0,0.00019732,2]
[360665163,1746921045339,-400.0,0.00019732,2]
[360665164,1746921045349,-668.86,0.00019732,2]
[360665165,1746921045358,-400.0,0.00019732,2]
[360665166,1746921045368,-400.0,0.00019732,2]
[360665167,1746921045378,-400.0,0.00019732,2]
[360665169,1746921045388,-400.0,0.00019732,2]
[360665170,1746921045398,-400.0,0.00019732,2]
[360665171,1746921045407,-400.0,0.00019732,2]
[360665172,1746921045416,-400.0,0.00019732,2]
[360665173,1746921045426,-400.0,0.00019732,2]
[360665174,1746921045435,-400.0,0.00019732,2]
[360665175,1746921045445,-400.0,0.00019732,2]
[360665176,1746921045455,-356.42074864,0.00019732,2]
[360665177,1746921045465,-326.02,0.00019732,2]
[360665178,1746921045474,-400.0,0.00019732,2]
[360665179,1746921045484,-400.0,0.00019732,2]
[360665180,1746921045493,-400.0,0.00019732,2]
[360665181,1746921045502,-501.15400632,0.00019732,2]
[360665182,1746921045512,-939.42,0.00019732,2]
[360665183,1746921045522,-403.00751159,0.00019732,2]
[360665184,1746921045531,-400.0,0.00019732,2]
[360665185,1746921045541,-400.588147,0.00019732,2]
[360665186,1746921045551,-400.0,0.00019732,2]
[360665187,1746921045561,-477.71,0.00019732,2]
[360665188,1746921045571,-500.0,0.00019732,2]
[360665189,1746921045581,-400.0,0.00019732,2]
[360665190,1746921045591,-400.0,0.00019732,2]
[360665191,1746921045601,-400.0,0.00019732,2]
[360665192,1746921045610,-400.0,0.00019732,2]
[360665193,1746921045620,-400.0,0.00019732,2]
[360665194,1746921045630,-1454.44,0.00019732,2]
[360665195,1746921045639,-400.54007214,0.00019732,2]
[360665196,1746921045649,-400.0,0.00019732,2]
[360665197,1746921045659,-400.0,0.00019732,2]
[360665198,1746921045668,-400.0,0.00019732,2]
[360665199,1746921045679,-400.0,0.00019732,2]
[360665200,1746921045688,-4006.0528,0.00019733,2]
[360665201,1746921045698,-21937.5428,0.00019733,2]
[360665202,1746921045707,-1469.8765,0.00019733,2]
[360665203,1746921045718,-403.87302341,0.00019737,2]
[360665204,1746921045727,-400.0,0.00019737,2]
[360665205,1746921045737,-400.0,0.00019737,2]
[360665206,1746921045747,-271.28282818,0.00019737,2]
[360665207,1746921045757,-549.33360701,0.00019737,2]
[360665208,1746921045766,-400.0,0.00019737,2]
[360665209,1746921045775,-535.80132292,0.00019737,2]
[360665210,1746921045785,-401.80715548,0.00019737,2]
[360665211,1746921045795,-400.0,0.00019737,2]
[360665212,1746921045805,-400.1632469,0.00019737,2]
[360665213,1746921045814,-400.0,0.00019737,2]
[360665216,1746921045824,-400.0,0.00019737,2]
[360665218,1746921045834,-400.0,0.00019737,2]
[360665220,1746921045843,-400.0,0.00019737,2]
[360665222,1746921045852,-150.34943283,0.00019737,2]
[360665224,1746921045861,-1049.65,0.00019737,2]
[360665226,1746921045870,-400.0,0.00019737,2]
[360665228,1746921045880,-400.0,0.00019737,2]
[360665230,1746921045889,-400.0,0.00019737,2]
[360665232,1746921045898,-504.28326547,0.00019737,2]
[360665234,1746921045907,-400.0,0.00019737,2]
[360665236,1746921045917,-400.0,0.00019737,2]
[360665238,1746921045926,-400.0,0.00019737,2]
[360665240,1746921045938,-400.0,0.00019737,2]
[360665242,1746921045949,-450.0,0.00019737,2]
[360665244,1746921045959,-431.18,0.00019737,2]
[360665246,1746921045969,-400.0,0.00019737,2]
[360665248,1746921045978,-539.8939855,0.00019737,2]
[360665250,1746921045988,-400.0,0.00019737,2]
[360665252,1746921045997,-400.0,0.00019737,2]
[360665254,1746921046006,-450.0,0.00019737,2]
[360665256,1746921046017,-400.0,0.00019737,2]
[360665258,1746921046027,-400.0,0.00019737,2]
[360665260,1746921046037,-450.0,0.00019737,2]
[360665262,1746921046046,-400.0,0.00019737,2]
[360665264,1746921046056,-400.0,0.00019737,2]
[360665266,1746921046066,-400.0,0.00019737,2]
[360665268,1746921046076,-400.0,0.00019737,2]
[360665270,1746921046085,-469.12,0.00019737,2]
[360665272,1746921046095,-400.0,0.00019737,2]
[360665274,1746921046105,-400.0,0.00019737,2]
[360665276,1746921046114,-400.0,0.00019737,2]
[360665278,1746921046124,-446.04,0.00019737,2]
[360665280,1746921046134,-400.0,0.00019737,2]
[360665282,1746921046143,-400.0,0.00019737,2]
[360665284,1746921046153,-400.0,0.00019737,2]
[360665286,1746921046162,-400.0,0.00019737,2]
[360665288,1746921046172,-400.0,0.00019737,2]
[360665290,1746921046182,-400.0,0.00019737,2]
[360665292,1746921046191,-400.0,0.00019737,2]
[360665294,1746921046200,-500.0,0.00019737,2]
[360665296,1746921046210,-400.0,0.00019737,2]
[360665298,1746921046219,-400.0,0.00019737,2]
[360665300,1746921046229,-400.0,0.00019737,2]
[360665302,1746921046239,-400.0,0.00019737,2]
[360665304,1746921046249,-499.95513369,0.00019737,2]
[360665306,1746921046258,-400.0,0.00019737,2]
[360665308,1746921046268,-400.0,0.00019737,2]
[360665310,1746921046277,-400.0,0.00019737,2]
[360665312,1746921046287,-400.0,0.00019737,2]
[360665314,1746921046296,-400.0,0.00019737,2]
[360665316,1746921046305,-400.0,0.00019737,2]
[360665318,1746921046314,-400.0,0.00019737,2]
[360665320,1746921046325,-400.0,0.00019737,2]
[360665322,1746921046334,-400.0,0.00019737,2]
[360665323,1746921046343,-400.0,0.00019737,2]
[360665324,1746921046352,-400.0,0.00019737,2]
[360665325,1746921046361,-400.0,0.00019737,2]
[360665326,1746921046371,-400.0,0.00019737,2]
[360665327,1746921046380,-400.0,0.00019737,2]
[360665329,1746921046389,-448.0,0.00019737,2]
[360665331,1746921046398,-400.0,0.00019737,2]
[360665332,1746921046407,-400.0,0.00019737,2]
[360665333,1746921046417,-400.0,0.00019737,2]
[360665334,1746921046426,-400.0,0.00019737,2]
[360665335,1746921046435,-400.0,0.00019737,2]
[360665336,1746921046445,-10065.75,0.00019737,2]
[360665337,1746921046454,-578.34,0.00019737,2]
[360665338,1746921046463,-400.0,0.00019737,2]
[360665339,1746921046472,-775.38,0.00019737,2]
[360665340,1746921046482,-748.68,0.00019737,2]
[360665341,1746921046491,-400.0,0.00019737,2]
[360665342,1746921046500,-509.29224692,0.00019737,2]
[360665343,1746921046509,-400.0,0.00019737,2]
[360665344,1746921046518,-905.71,0.00019737,2]
[360665345,1746921046527,-400.0,0.00019737,2]
[360665347,1746921046537,-3125.13,0.00019737,2]
[360665349,1746921046546,-1520.03,0.00019737,2]
[360665351,1746921046555,-400.0,0.00019737,2]
[360665353,1746921046566,-400.04,0.00019737,2]
[360665355,1746921046577,-238.19275453,0.00019738,2]
[360665357,1746921046587,-290.22393151,0.00019738,2]
[360665359,1746921046597,-400.0,0.00019738,2]
[360665361,1746921046606,-323.0416506,0.00019738,2]
[360665363,1746921046615,-400.0,0.00019738,2]
[360665365,1746921046625,-549.43452403,0.00019738,2]
[360665367,1746921046635,-228.96731651,0.00019738,2]
[360665369,1746921046644,-402.43639433,0.00019738,2]
[360665371,1746921046654,-251.16603277,0.00019738,2]
[360665373,1746921046664,-400.0,0.00019738,2]
[360665375,1746921046673,-400.0,0.00019738,2]
[360665377,1746921046682,-404.45909175,0.00019738,2]
[360665384,1746921046733,-733.66,0.00019738,2]
[360665386,1746921046744,-400.0,0.00019738,2]
[360665388,1746921046753,-400.0,0.00019738,2]
[360665390,1746921046763,-400.0,0.00019738,2]
[360665392,1746921046771,-1362.34,0.00019738,2]
[360665394,1746921046782,-400.0,0.00019738,2]
[360665396,1746921046791,-400.0,0.00019738,2]
[360665398,1746921046800,-547.27,0.00019738,2]
[360665400,1746921046809,-400.0,0.00019738,2]
[360665402,1746921046819,-400.0,0.00019738,2]
[360665404,1746921046829,-400.0,0.00019738,2]
[360665406,1746921046838,-400.0,0.00019738,2]
[360665408,1746921046847,-150.0,0.00019742,2]
[360665410,1746921046857,-461.98,0.00019743,2]
[360665412,1746921046866,-400.0,0.00019743,2]
[360665414,1746921046875,-400.0,0.00019743,2]
[360665416,1746921046886,-400.0,0.00019743,2]
[360665418,1746921046896,-400.0,0.00019743,2]
[360665420,1746921046906,-400.0,0.00019743,2]
[360665422,1746921046915,-400.0,0.00019743,2]
[360665424,1746921046924,-400.0,0.00019743,2]
[360665425,1746921046934,-403.23,0.00019743,2]
[360665428,1746921046946,-400.0,0.00019743,2]
[360665429,1746921046955,-394.95,0.00019743,2]
[360665432,1746921046964,-400.0,0.00019743,2]
[360665434,1746921046974,-400.0,0.00019743,2]
[360665435,1746921046985,-400.0,0.00019743,2]
[360665437,1746921046994,-400.0,0.00019743,2]
[360665440,1746921047003,-400.0,0.00019743,2]
[360665442,1746921047014,-474.33,0.00019743,2]
[360665444,1746921047024,-400.0,0.00019743,2]
[360665446,1746921047033,-400.0,0.00019743,2]
[360665448,1746921047043,-400.0,0.00019743,2]
[360665450,1746921047052,-400.0,0.00019743,2]
[360665452,1746921047062,-400.0,0.00019743,2]
[360665454,1746921047071,-400.0,0.00019743,2]
[360665456,1746921047081,-400.0,0.00019743,2]
[360665458,1746921047091,-655.53,0.00019743,2]
[360665460,1746921047102,-400.0,0.00019743,2]
[360665462,1746921047111,-400.0,0.00019743,2]
[360665464,1746921047120,-400.0,0.00019743,2]
[360665465,1746921047129,-546.52,0.00019743,2]
[360665468,1746921047139,-400.0,0.00019743,2]
[360665469,1746921047149,-400.0,0.00019744,2]
[360665471,1746921047158,-400.0,0.00019744,2]
[360665473,1746921047168,-400.0,0.00019744,2]
[360665475,1746921047177,-245.51785886,0.00019744,2]
[360665477,1746921047186,-400.0,0.00019744,2]
[360665479,1746921047196,-400.0,0.00019744,2]
[360665481,1746921047205,-204.49178053,0.00019744,2]
[360665483,1746921047215,-530.15136482,0.00019744,2]
[360665485,1746921047224,-195.28955756,0.00019744,2]
[360665487,1746921047234,-237.3520107,0.00019744,2]
[360665489,1746921047243,-400.0,0.00019744,2]
[360665491,1746921047251,-345.42032689,0.00019744,2]
[360665493,1746921047262,-536.26129344,0.00019744,2]
[360665495,1746921047271,-400.0,0.00019744,2]
[360665497,1746921047280,-484.63432275,0.00019744,2]
[360665499,1746921047290,-399.7998,0.00019744,2]
[360665501,1746921047300,-400.0,0.00019744,2]
[360665503,1746921047309,-400.0,0.00019744,2]
[360665505,1746921047320,-400.0,0.00019744,2]
[360665506,1746921047330,-400.0,0.00019744,2]
[360665508,1746921047340,-400.0,0.00019744,2]
[360665510,1746921047350,-503.68,0.00019744,2]
[360665513,1746921047360,-400.0,0.00019744,2]
[360665514,1746921047370,-400.0,0.00019744,2]
[360665516,1746921047380,-400.0,0.00019744,2]
[360665518,1746921047390,-449.81,0.00019744,2]
[360665520,1746921047400,-346.05,0.00019744,2]
[360665522,1746921047409,-363.75,0.00019744,2]
[360665524,1746921047419,-400.0,0.00019744,2]
[360665526,1746921047429,-276.95,0.00019744,2]
[360665528,1746921047438,-400.0,0.00019744,2]
[360665530,1746921047448,-260.9,0.00019744,2]
[360665532,1746921047457,-400.0,0.00019744,2]
[360665534,1746921047466,-403.59,0.00019744,2]
[360665536,1746921047475,-308.21,0.00019744,2]
[360665538,1746921047485,-274.9,0.00019744,2]
[360665540,1746921047494,-400.0,0.00019744,2]
[360665542,1746921047503,-400.0,0.00019744,2]
[360665544,1746921047513,-266.23,0.00019744,2]
[360665546,1746921047522,-400.0,0.00019744,2]
[360665548,1746921047532,-400.0,0.00019744,2]
[360665550,1746921047541,-485.36,0.00019744,2]
[360665552,1746921047551,-400.0,0.00019744,2]
[360665554,1746921047561,-400.0,0.00019744,2]
[360665556,1746921047571,-400.0,0.00019744,2]
[360665558,1746921047584,-400.0,0.00019744,2]
[360665560,1746921047594,-400.0,0.00019744,2]
[360665562,1746921047604,-400.0,0.00019744,2]
[360665564,1746921047614,-406.58,0.00019744,2]
[360665566,1746921047623,-400.0,0.00019744,2]
[360665568,1746921047633,-400.0,0.00019744,2]
[360665569,1746921047642,-400.0,0.00019744,2]
[360665571,1746921047653,-400.0,0.00019744,2]
[360665573,1746921047663,-400.0,0.00019744,2]
[360665576,1746921047674,-400.0,0.00019744,2]
[360665577,1746921047683,-400.0,0.00019744,2]
[360665579,1746921047692,-400.0,0.00019744,2]
[360665582,1746921047702,-400.0,0.00019744,2]
[360665584,1746921047712,-476.14077894,0.00019744,2]
[360665585,1746921047721,-400.0,0.00019744,2]
[360665587,1746921047730,-400.0,0.00019744,2]
[360665589,1746921047740,-579.75,0.00019744,2]
[360665591,1746921047749,-400.0,0.00019744,2]
[360665593,1746921047760,-400.0,0.00019744,2]
[360665595,1746921047770,-400.0,0.00019744,2]
[360665597,1746921047779,-400.0,0.00019744,2]
[360665599,1746921047788,-400.0,0.00019744,2]
[360665601,1746921047797,-400.0,0.00019744,2]
[360665603,1746921047806,-400.0,0.00019744,2]
[360665605,1746921047816,-400.0,0.00019744,2]
[360665607,1746921047826,-400.0,0.00019744,2]
[360665609,1746921047836,-420.89,0.00019744,2]
[360665611,1746921047846,-400.0,0.00019744,2]
[360665613,1746921047855,-400.0,0.00019744,2]
[360665615,1746921047864,-400.0,0.00019744,2]
[360665617,1746921047874,-400.0,0.00019744,2]
[360665619,1746921047883,-328.49882561,0.00019744,2]
[360665621,1746921047892,-400.0,0.00019744,2]
[360665623,1746921047901,-400.0,0.00019744,2]
[360665625,1746921047911,-400.0,0.00019744,2]
[360665627,1746921047920,-400.0,0.00019744,2]
[360665629,1746921047929,-400.0,0.00019744,2]